bitfinex/quotes_ETHUSD_20240820
["timestamp","ask_amount","ask_price","bid_price","bid_amount"]
[1724116353909,4.7305912,2663.9,2663.7,0.09658618]
[1724116354124,0.9766912,2663.9,2663.7,0.09658618]
[1724116355311,9.766912,2664.0,2663.7,0.09658618]
[1724116355312,3.0,2664.0,2663.7,0.09658618]
[1724116355515,3.0,2664.1,2663.7,0.09658618]
[1724116355671,3.0,2664.1,2663.6,0.1299763]
[1724116355871,4.429113,2664.0,2663.6,0.1299763]
[1724116356228,3.75404,2663.8,2663.6,0.1299763]
[1724116356362,5.3828,2663.9,2663.6,0.1299763]
[1724116356775,9.13669,2663.9,2663.6,0.1299763]
[1724116357498,3.75404,2663.8,2663.6,0.1299763]
[1724116357819,14.459024,2663.7,2663.6,0.1299763]
[1724116357979,17.23693786,2663.7,2663.6,0.1299763]
[1724116358179,20.23693786,2663.7,2663.6,0.1299763]
[1724116358420,23.99110786,2663.7,2663.6,0.1299763]
[1724116358641,3.75559,2662.7,2662.1,2.4238]
[1724116358792,9.10203,2662.9,2662.1,2.4238]
[1724116358982,3.75545,2662.8,2662.2,0.09810176]
[1724116359183,3.75545,2662.8,2662.1,2.4238]
[1724116359184,3.0,2662.7,2662.1,2.4238]
[1724116359382,3.0,2662.9,2662.1,2.4238]
[1724116359383,3.0,2662.9,2662.3,0.09805245]
[1724116359604,6.10154,2663.3,2662.1,2.4238]
[1724116359605,3.0,2663.1,2662.1,2.4238]
[1724116359818,3.75518,2663.0,2662.4,0.09800314]
[1724116360002,3.0,2662.9,2662.2,0.24238]
[1724116360203,3.0,2662.9,2662.5,0.09795383]
[1724116360466,3.0,2662.9,2662.2,0.24238]
[1724116360615,3.0,2662.9,2662.3,0.55]
[1724116360923,7.51002,2663.2,2662.3,0.64805245]
[1724116360924,3.0,2663.1,2662.3,0.64805245]
[1724116361231,6.75504,2663.1,2662.3,0.64805245]
[1724116361524,6.75504,2663.1,2662.3,0.97947569]
[1724116361728,3.0,2663.1,2662.3,0.97947569]
[1724116363852,6.75503,2663.1,2662.3,0.97947569]
[1724116364139,3.0,2663.1,2662.3,0.64805245]
[1724116364353,3.75546,2662.8,2662.3,0.09805245]
[1724116364661,3.75575,2662.6,2661.7,2.3899]
[1724116364839,3.75636,2662.2,2661.4,2.9788749]
[1724116365041,3.75636,2662.2,2661.8,0.09829904]
[1724116365223,3.75655,2662.1,2661.4,2.3899]
[1724116365451,4.131996,2662.2,2661.4,2.3899]
[1724116365452,3.75657,2662.0,2661.4,2.3899]
[1724116365838,6.435996,2662.2,2660.9,0.1299763]
[1724116365839,3.75671,2661.9,2661.0,2.3899]
[1724116366153,3.75722,2661.6,2661.0,2.3899]
[1724116366308,3.7575,2661.4,2661.1,0.09864442]
[1724116366508,4.13325,2661.4,2660.9,0.1299763]
[1724116366709,3.75728,2661.5,2660.9,0.1299763]
[1724116366910,3.0,2661.8,2661.0,2.3882]
[1724116367104,3.76829868,2662.2,2661.1,0.09954512]
[1724116367105,3.75672,2661.9,2661.1,0.09954512]
[1724116367355,3.0,2662.1,2661.0,2.3882]
[1724116367356,3.75686,2661.8,2661.0,2.3882]
[1724116367651,3.0,2661.7,2661.2,0.09949577]
[1724116367868,3.75665,2662.0,2661.0,2.3882]
[1724116367869,3.0,2661.9,2661.1,0.09954512]
[1724116368023,3.0,2661.9,2661.1,0.26177214]
[1724116368227,3.0,2661.9,2661.3,2.3929]
[1724116368426,3.0,2662.2,2661.4,0.55]
[1724116368624,3.75595,2662.5,2661.4,0.64939708]
[1724116369059,9.04934,2662.6,2661.4,0.64939708]
[1724116369060,3.75602,2662.4,2661.4,0.64939708]
[1724116369261,5.036556,2662.4,2661.5,0.30422971]
[1724116369473,8.792656,2662.4,2661.5,0.30422971]
[1724116369633,3.0,2662.3,2661.6,0.0992984]
[1724116370414,3.75652,2662.1,2661.4,0.55]
[1724116370615,3.0,2662.0,2661.4,0.55]
[1724116370860,3.0,2662.1,2661.4,0.84429]
[1724116371014,7.31085786,2662.3,2661.4,0.84429]
[1724116371437,3.75635,2662.2,2661.4,0.84429]
[1724116371637,3.0,2662.1,2661.4,0.84429]
[1724116372043,3.73109779,2662.1,2661.4,0.84429]
[1724116372225,7.48752779,2662.1,2661.4,0.55]
[1724116372646,3.75665,2662.0,2661.3,2.3929]
[1724116372857,3.75673,2661.9,2660.5,3.037]
[1724116373151,3.75689,2661.8,2661.0,0.10027879]
[1724116373351,3.75709,2661.7,2661.0,0.10027879]
[1724116373514,0.751398,2661.6,2661.0,0.10027879]
[1724116373717,0.751398,2661.6,2660.3,3.0]
[1724116373943,0.751398,2661.6,2660.1,0.3764]
[1724116373944,8.265788,2661.6,2660.1,0.3764]
[1724116374115,6.75736,2661.5,2660.1,0.3764]
[1724116374739,6.75736,2661.5,2660.0,6.79627]
[1724116374955,6.75736,2661.5,2660.0,3.037]
[1724116375254,3.75765,2661.3,2660.0,3.037]
[1724116375498,3.7577,2661.2,2660.0,3.037]
[1724116375642,3.7577,2661.2,2659.7,7.76244547]
[1724116375972,3.75782,2661.2,2660.5,2.4661]
[1724116376117,0.375782,2661.1,2660.1,2.2614]
[1724116376319,4.133652,2661.1,2660.1,2.2614]
[1724116376633,4.133652,2661.1,2659.8,2.2614]
[1724116376634,12.89456,2661.0,2659.8,2.2614]
[1724116377155,9.13658,2661.0,2659.8,2.2614]
[1724116377360,12.89456,2661.0,2659.8,2.2614]
[1724116377517,14.5252942,2661.0,2659.8,2.2614]
[1724116377717,10.7673142,2661.0,2659.8,2.2614]
[1724116378754,4.6307342,2661.0,2659.8,2.2614]
[1724116378966,3.0,2661.0,2660.5,2.2675]
[1724116379476,3.0,2661.3,2660.9,0.23106899]
[1724116379784,6.75742,2661.4,2660.9,0.1299763]
[1724116380332,3.0,2661.4,2660.9,0.1299763]
[1724116380589,3.75798,2661.0,2660.9,0.1299763]
[1724116381092,6.75798,2661.0,2660.9,0.1299763]
[1724116381266,3.0,2661.0,2660.9,0.1299763]
[1724116381785,3.3,2661.3,2660.9,0.1299763]
[1724116381988,7.05759,2661.3,2660.9,0.1299763]
[1724116382483,3.0,2661.3,2660.9,0.1299763]
[1724116382781,2.3139,2661.6,2660.9,0.1299763]
[1724116383079,6.07104,2661.6,2660.9,0.1299763]
[1724116383293,2.3139,2661.6,2661.0,0.10093724]
[1724116383601,2.54529,2661.6,2660.9,0.1299763]
[1724116383757,3.75793,2661.1,2660.9,0.1299763]
[1724116384095,6.75798,2661.0,2660.9,0.1299763]
[1724116384839,10.51596,2661.0,2660.9,0.1299763]
[1724116385046,11.567556,2661.0,2660.9,0.1299763]
[1724116385788,7.809576,2661.0,2660.9,0.1299763]
[1724116386089,3.0,2661.0,2660.9,0.1299763]
[1724116386446,3.0,2661.3,2660.9,0.1299763]
[1724116386810,3.75793,2661.1,2660.9,0.1299763]
[1724116387287,3.0,2661.0,2660.9,0.1299763]
[1724116387691,3.0,2661.0,2660.9,0.0799763]
[1724116387837,3.675793,2661.0,2660.9,0.0799763]
[1724116388169,7.433773,2661.0,2660.9,0.0799763]
[1724116388374,3.675793,2661.0,2660.9,0.0799763]
[1724116388695,2.2865,2661.5,2660.9,0.0799763]
[1724116388840,0.23139,2661.6,2660.9,0.0799763]
[1724116389040,3.98864,2661.6,2660.9,0.0799763]
[1724116389271,3.75736,2661.5,2660.9,0.0799763]
[1724116389471,0.398875,2661.4,2660.9,0.0799763]
[1724116390089,3.23139,2661.6,2660.9,0.0799763]
[1724116391582,6.98862,2661.6,2660.9,0.0799763]
[1724116391778,3.75728,2661.5,2660.9,0.0799763]
[1724116392010,3.0,2661.4,2660.9,0.0799763]
[1724116394175,3.23139,2661.6,2660.9,0.0799763]
[1724116394380,6.9886,2661.6,2660.9,0.0799763]
[1724116394994,3.75728,2661.5,2660.9,0.0799763]
[1724116395331,3.698867,2661.4,2660.9,0.0799763]
[1724116395683,3.698867,2661.4,2660.9,0.0299763]
[1724116398297,3.0,2661.4,2660.9,0.0299763]
[1724116399836,3.7579,2661.1,2660.9,0.0299763]
[1724116400147,6.75798,2661.0,2660.9,0.0299763]
[1724116401608,3.0,2661.0,2660.9,0.0299763]
[1724116402054,3.0,2661.2,2660.9,0.0299763]
[1724116402400,10.55178,2661.5,2660.9,0.0299763]
[1724116402401,3.0,2661.4,2660.9,0.0299763]
[1724116402950,4.48759779,2662.1,2661.1,2.3562]
[1724116403170,6.12952,2662.3,2661.1,2.3562]
[1724116403358,3.75593,2662.5,2661.2,0.65081642]
[1724116403501,4.63463331,2662.9,2661.3,2.3562]
[1724116403502,6.12875,2662.8,2661.3,2.3562]
[1724116403700,0.95413516,2662.7,2661.5,2.3562]
[1724116404018,0.95413516,2662.7,2661.6,0.65060579]
[1724116404019,3.75447229,2662.6,2661.6,0.65060579]
[1724116404342,3.037,2662.6,2661.6,0.10060579]
[1724116404753,3.037,2662.6,2661.5,2.3562]
[1724116404901,3.75611,2662.4,2661.6,0.55]
[1724116405097,3.7562,2662.3,2661.7,0.10026922]
[1724116405324,3.75609,2662.4,2661.7,0.10026922]
[1724116405536,3.0,2662.3,2661.6,0.84062]
[1724116405745,3.0,2662.3,2661.5,2.3562]
[1724116405913,3.0,2662.3,2661.7,0.10026922]
[1724116405914,3.7565,2662.1,2661.7,0.10026922]
[1724116406244,3.0,2662.0,2661.5,2.3562]
[1724116406443,6.75632,2662.2,2661.5,2.3562]
[1724116406647,7.807572,2662.2,2661.5,2.3562]
[1724116406804,3.0,2662.2,2661.5,2.3562]
[1724116407006,3.0,2662.4,2661.6,0.10031856]
[1724116407206,3.0,2662.4,2660.9,0.10511197]
[1724116407207,7.70974516,2662.7,2661.8,2.4536]
[1724116407630,7.70974516,2662.7,2661.9,0.1001043]
[1724116407944,7.70974516,2662.7,2661.8,2.4536]
[1724116407945,3.75588,2662.5,2661.8,2.4536]
[1724116408243,6.75602,2662.4,2661.8,2.4536]
[1724116408443,6.75609,2662.4,2661.8,2.4536]
[1724116408603,3.0,2662.4,2661.8,2.4536]
[1724116408805,3.7565,2662.1,2661.0,2.3905]
[1724116409143,3.0,2662.0,2661.9,0.10008664]
[1724116409346,3.0,2662.0,2661.1,0.79204763]
[1724116409749,3.0,2662.0,2661.2,0.100432]
[1724116409919,3.0,2662.2,2661.4,2.4486]
[1724116410320,3.0,2662.2,2661.5,0.10028396]
[1724116410649,6.7563,2662.2,2661.5,0.35517236]
[1724116410853,3.0,2662.2,2661.5,0.35517236]
[1724116411011,6.75635,2662.2,2661.5,0.35517236]
[1724116412126,3.0,2662.2,2661.5,0.35517236]
[1724116412329,6.75619,2662.3,2661.5,0.35517236]
[1724116412525,3.0,2662.3,2661.5,0.35517236]
[1724116412850,6.75615,2662.3,2661.5,0.35517236]
[1724116413056,0.41778938,2662.2,2661.5,0.35517236]
[1724116414040,0.41778938,2662.2,2661.5,0.10028396]
[1724116415345,3.0,2662.3,2661.7,2.3001]
[1724116415672,3.7558,2662.6,2661.8,0.1747866]
[1724116415673,3.0,2662.5,2661.8,0.1747866]
[1724116415973,3.0,2662.5,2661.8,0.09965873]
[1724116416383,6.75587,2662.5,2661.8,0.09965873]
[1724116416573,7.90245052,2662.5,2661.8,0.09965873]
[1724116416878,4.14658052,2662.5,2661.8,0.09965873]
[1724116417557,2.3369,2662.9,2661.8,0.09965873]
[1724116417558,6.09225,2662.9,2661.8,0.09965873]
[1724116417762,6.09225,2662.9,2661.9,0.55]
[1724116417763,3.75548,2662.8,2661.9,0.55]
[1724116418167,6.79196,2663.2,2662.1,2.3463]
[1724116418337,3.75516,2663.0,2662.2,0.55]
[1724116418529,4.809872,2663.0,2662.2,0.64946144]
[1724116418733,3.75552,2662.8,2662.2,0.09946144]
[1724116418935,1.054712,2663.0,2662.2,0.09946144]
[1724116418936,3.75544,2662.9,2662.2,0.09946144]
[1724116419162,3.75561,2662.7,2662.2,0.09946144]
[1724116419357,3.75539,2662.9,2662.2,0.09946144]
[1724116419569,7.2365502,2662.8,2662.2,0.09946144]
[1724116419734,3.4810102,2662.8,2662.2,0.09946144]
[1724116420147,3.75561,2662.7,2662.2,0.09946144]
[1724116420351,3.0,2662.6,2662.2,0.09946144]
[1724116421498,3.0,2662.7,2662.3,0.55]
[1724116421702,6.75504,2663.1,2662.3,0.55]
[1724116423253,3.0,2663.1,2662.3,0.55]
[1724116423454,3.0,2663.1,2662.4,0.09936283]
[1724116423759,4.08989727,2663.1,2662.3,0.55]
[1724116423979,7.84493727,2663.1,2662.3,0.55]
[1724116424182,3.75475,2663.3,2662.4,2.28]
[1724116424376,3.75475,2663.3,2662.4,2.3788373]
[1724116425192,6.79154,2663.5,2662.4,2.3788373]
[1724116425193,6.79153,2663.5,2662.4,2.3788373]
[1724116425364,6.79153,2663.5,2662.6,2.28]
[1724116425697,1.054598,2663.4,2662.6,2.28]
[1724116425851,3.75445,2663.6,2662.6,2.28]
[1724116426204,3.75445,2663.6,2662.8,2.4679]
[1724116426651,3.75445,2663.6,2662.9,0.09845397]
[1724116426652,3.75441,2663.6,2662.9,0.09845397]
[1724116426990,3.75456,2663.5,2662.8,2.4679]
[1724116427288,0.750897,2663.4,2662.8,2.4679]
[1724116427492,3.0,2663.4,2662.8,2.4679]
[1724116427795,3.0,2663.5,2662.8,2.4679]
[1724116428004,3.0,2663.4,2662.8,2.4679]
[1724116428351,3.0,2663.5,2662.9,0.09833921]
[1724116428552,6.75439,2663.6,2662.8,2.4679]
[1724116428793,0.675439,2663.5,2662.8,2.4679]
[1724116429708,2.976039,2663.5,2662.5,3.0285]
[1724116429858,3.0,2663.4,2662.5,2.4785]
[1724116430051,3.0,2663.4,2661.6,3.75708]
[1724116430052,3.75524,2663.0,2661.6,2.4785]
[1724116430268,3.75554,2662.8,2662.6,0.09847385]
[1724116430481,6.05584,2663.0,2662.1,2.4785]
[1724116430482,0.375554,2662.7,2662.1,2.4785]
[1724116430830,3.75531,2662.9,2662.2,0.09867107]
[1724116430968,3.0,2662.8,2662.1,2.4785]
[1724116431158,3.0,2662.8,2662.2,0.09867107]
[1724116431499,3.0,2662.9,2662.2,0.09867107]
[1724116431871,3.75544,2662.8,2662.2,0.09867107]
[1724116432088,0.675544,2662.7,2662.1,2.4785]
[1724116432500,3.0,2662.9,2662.1,2.4785]
[1724116432795,6.0934,2663.2,2662.2,0.55]
[1724116433098,6.75509,2663.1,2662.2,0.64867107]
[1724116433391,3.0,2663.1,2662.2,0.64867107]
[1724116433600,1.284837,2663.0,2662.2,0.64867107]
[1724116436026,3.0,2663.1,2662.2,0.64867107]
[1724116436190,6.75488,2663.2,2662.2,0.64867107]
[1724116436719,10.50986,2663.2,2662.2,0.64867107]
[1724116436887,3.75503,2663.1,2662.2,0.64867107]
[1724116437213,4.050991,2663.0,2662.2,0.64867107]
[1724116437410,3.75538,2662.9,2662.2,0.09867107]
[1724116437724,3.0,2662.8,2662.2,0.09867107]
[1724116438477,3.0,2663.0,2662.2,0.09867107]
[1724116438711,3.0,2663.0,2662.3,0.55]
[1724116439073,3.0,2663.0,2662.5,2.4017]
[1724116439268,6.7549,2663.2,2662.5,2.4017]
[1724116439474,6.7549,2663.2,2662.6,0.09854444]
[1724116439890,3.0,2663.2,2662.6,0.09854444]
[1724116440085,3.67548,2663.2,2662.6,0.09854444]
[1724116440303,2.65209501,2663.6,2662.6,0.09854444]
[1724116440304,0.34819501,2663.6,2662.7,2.3264]
[1724116440634,6.18031,2664.1,2662.8,2.42480171]
[1724116440635,2.4267,2664.1,2662.8,2.42480171]
[1724116440919,3.75431,2663.7,2662.9,0.55]
[1724116441214,3.75453,2663.5,2662.8,2.3264]
[1724116441524,3.75453,2663.5,2663.0,0.09830313]
[1724116441725,3.75453,2663.5,2662.9,0.09835242]
[1724116441922,3.75453,2663.5,2662.8,2.3264]
[1724116442886,0.375431,2663.6,2662.8,2.3264]
[1724116443234,3.0,2663.6,2662.9,0.88099242]
[1724116443516,3.0,2663.8,2662.9,0.88099242]
[1724116444129,9.90931,2664.1,2663.0,2.2572]
[1724116444130,3.0,2664.0,2663.0,2.2572]
[1724116444289,3.75407,2663.8,2663.0,2.2572]
[1724116444495,3.0,2663.7,2663.1,0.09825385]
[1724116444693,3.75217,2665.2,2663.2,2.8072]
[1724116444694,3.7534,2664.3,2663.2,2.8072]
[1724116444904,4.12889,2664.2,2663.2,2.90540457]
[1724116445220,3.75382,2664.0,2663.2,2.35540457]
[1724116445428,6.55944,2664.2,2663.2,2.35540457]
[1724116445580,3.75368,2664.1,2663.2,2.35540457]
[1724116445981,3.0,2664.0,2663.3,0.07508577]
[1724116446181,4.12894,2664.2,2663.3,0.07508577]
[1724116446182,3.0,2664.1,2663.4,0.0978324]
[1724116446407,1.0,2664.1,2663.4,0.0978324]
[1724116446592,4.1289,2664.2,2663.3,0.24304903]
[1724116446895,4.1289,2664.2,2663.4,0.0978324]
[1724116446896,3.75362,2664.1,2663.4,0.0978324]
[1724116447095,3.75384,2664.0,2663.4,0.0978324]
[1724116447305,3.75411,2663.8,2663.4,0.0978324]
[1724116447622,3.75411,2663.8,2662.7,7.38]
[1724116447623,3.75434,2663.6,2662.9,2.3203]
[1724116447823,3.75434,2663.6,2663.5,0.09778313]
[1724116448024,3.75434,2663.6,2663.0,7.38]
[1724116448210,3.75434,2663.6,2663.5,0.09778313]
[1724116448412,3.75483,2663.3,2663.0,7.38]
[1724116448611,6.75495,2663.2,2663.0,7.38]
[1724116449419,3.75502,2663.1,2663.0,7.38]
[1724116449621,3.0,2663.1,2663.0,7.38]
[1724116449924,3.75502,2663.1,2663.0,7.38]
[1724116450127,6.75502,2663.1,2663.0,7.38]
[1724116450311,3.0,2663.1,2663.0,7.38]
[1724116450627,3.75468,2663.4,2663.0,7.38]
[1724116450628,3.0,2663.3,2663.0,7.38]
[1724116451077,3.75488,2663.2,2663.0,7.38]
[1724116451282,3.0,2663.1,2663.0,7.38]
[1724116452336,3.0,2663.2,2663.0,7.38]
[1724116453170,6.75474,2663.3,2662.5,7.38]
[1724116453477,3.75488,2663.2,2662.6,0.98292]
[1724116453780,3.0,2663.1,2662.6,1.08114666]
[1724116454078,3.75552,2662.8,2662.6,0.09822666]
[1724116454233,3.75552,2662.8,2662.3,19.64]
[1724116454429,7.51108,2662.8,2662.7,0.09808909]
[1724116454684,7.506628,2662.8,2662.3,19.64]
[1724116454895,6.75552,2662.8,2662.3,19.64]
[1724116455394,3.75566,2662.7,2662.3,19.64]
[1724116455598,3.75566,2662.7,2662.1,2.3094]
[1724116455794,3.75573,2662.6,2662.0,7.38]
[1724116456091,3.75588,2662.5,2662.1,0.09842906]
[1724116456575,3.75573,2662.6,2662.1,0.09842906]
[1724116457391,7.51154,2662.6,2662.1,0.09842906]
[1724116457614,3.75573,2662.6,2662.1,0.09842906]
[1724116458084,3.75597,2662.5,2662.1,0.09842906]
[1724116458287,3.0,2662.4,2662.1,0.09842906]
[1724116459348,3.0,2662.5,2662.1,0.09842906]
[1724116459575,3.75574,2662.6,2661.8,2.3086]
[1724116459906,6.75595,2662.5,2661.8,2.3086]
[1724116460080,3.75608,2662.4,2661.9,0.0991192]
[1724116460968,3.75636,2662.2,2661.9,0.0991192]
[1724116461178,3.75636,2662.2,2661.7,7.38]
[1724116461487,6.20679,2662.4,2661.5,2.3327]
[1724116461795,3.75629,2662.2,2661.8,0.09916852]
[1724116461965,3.75629,2662.2,2661.5,2.3327]
[1724116462303,3.75639,2662.2,2661.5,2.3327]
[1724116462590,2.4507,2662.4,2661.4,19.64]
[1724116462591,3.75664,2662.0,2661.6,0.09926719]
[1724116462803,3.75688,2661.8,2661.6,0.09926719]
[1724116463102,3.75688,2661.8,2661.7,0.09921785]
[1724116463103,3.75685,2661.8,2661.7,0.09921785]
[1724116463296,3.75727,2661.5,2661.4,7.38]
[1724116463496,3.75727,2661.5,2660.9,2.3626763]
[1724116463855,7.51464,2661.5,2660.9,2.3626763]
[1724116464289,3.75727,2661.5,2660.9,2.3626763]
[1724116464598,3.75727,2661.5,2660.9,0.0299763]
[1724116464599,3.75742,2661.4,2660.9,0.0299763]
[1724116464892,3.75758,2661.3,2660.9,0.0299763]
[1724116465102,3.75758,2661.3,2660.9,0.77097393]
[1724116465257,3.75778,2661.2,2660.9,0.0299763]
[1724116465460,3.75786,2661.1,2660.9,0.0299763]
[1724116466569,3.75798,2661.0,2660.9,0.0299763]
[1724116466968,6.75798,2661.0,2660.9,0.0299763]
[1724116468073,3.0,2661.0,2660.9,0.0299763]
[1724116468810,6.75798,2661.0,2660.9,0.0299763]
[1724116470189,3.0,2661.0,2660.9,0.0299763]
[1724116472235,6.75798,2661.0,2660.9,0.0299763]
[1724116472406,7.809564,2661.0,2660.9,0.0299763]
[1724116474936,11.567544,2661.0,2660.9,0.0299763]
[1724116475833,6.75798,2661.0,2660.9,0.0299763]
[1724116476037,3.0,2661.0,2660.9,0.0299763]
[1724116476196,3.0,2661.1,2660.9,0.0299763]
[1724116478856,3.75798,2661.0,2660.9,0.0299763]
[1724116479146,6.75798,2661.0,2660.9,0.0299763]
[1724116481114,3.0,2661.0,2660.9,0.0299763]
[1724116481324,6.75787,2661.1,2660.9,0.0299763]
[1724116481520,7.53456297,2661.1,2660.9,0.0299763]
[1724116481823,3.75798,2661.0,2660.9,0.0299763]
[1724116482150,6.75798,2661.0,2660.9,0.0299763]
[1724116484347,3.0,2661.0,2660.9,0.0299763]
[1724116484560,3.037,2661.7,2660.9,2.3208763]
[1724116484561,6.01755,2661.7,2660.9,2.3208763]
[1724116484787,3.75753,2661.4,2660.9,2.42020434]
[1724116485083,3.75757,2661.3,2660.9,2.3208763]
[1724116485230,3.75757,2661.3,2660.9,0.0299763]
[1724116485231,3.75771,2661.2,2660.9,0.0299763]
[1724116486076,3.0,2661.1,2660.9,0.0299763]
[1724116486782,7.51499,2661.4,2660.9,0.0299763]
[1724116487079,3.0,2661.3,2660.9,0.0299763]
[1724116489640,6.75721,2661.6,2660.9,0.0299763]
[1724116489835,3.75757,2661.3,2660.9,0.0299763]
[1724116491193,3.75785,2661.1,2660.9,0.0299763]
[1724116491798,3.75798,2661.0,2660.9,0.0299763]
[1724116491996,6.75798,2661.0,2660.9,0.0299763]
[1724116492180,3.0,2661.0,2660.9,0.0299763]
[1724116493993,3.0,2661.1,2660.9,0.0299763]
[1724116494710,3.0,2661.2,2660.9,0.0299763]
[1724116495852,6.75772,2661.2,2660.9,0.0299763]
[1724116496054,3.0,2661.2,2660.9,0.0299763]
[1724116496491,3.0,2661.3,2660.9,0.0299763]
[1724116496695,6.75757,2661.3,2660.9,0.0299763]
[1724116498798,10.51525,2661.3,2660.9,0.0299763]
[1724116498965,3.7577,2661.2,2660.9,0.0299763]
[1724116499170,3.0,2661.1,2660.9,0.0299763]
[1724116499611,6.75785,2661.1,2660.9,0.0299763]
[1724116500316,3.75798,2661.0,2660.9,0.0299763]
[1724116500512,6.75798,2661.0,2660.9,0.0299763]
[1724116500722,14.286943,2661.0,2660.9,0.0299763]
[1724116503470,3.0,2661.0,2660.9,0.0299763]
[1724116503679,6.75788,2661.1,2660.9,0.0299763]
[1724116504119,3.037,2661.4,2660.9,0.0299763]
[1724116504120,3.75746,2661.4,2660.9,0.0299763]
[1724116504314,5.4645,2661.7,2660.9,0.0299763]
[1724116504661,3.75717,2661.6,2660.9,2.5211763]
[1724116505126,3.75692,2661.8,2660.9,2.5211763]
[1724116505425,7.51386,2661.8,2661.0,0.09931846]
[1724116505739,9.23366,2662.0,2660.9,2.5211763]
[1724116505884,6.50749006,2662.3,2661.1,2.43776911]
[1724116505885,2.44,2662.3,2661.1,2.43776911]
[1724116506084,3.75583,2662.6,2661.3,2.3385]
[1724116506285,3.75583,2662.6,2661.4,2.3385]
[1724116506485,7.51166,2662.6,2661.4,2.98743545]
[1724116506788,7.51164,2662.6,2661.4,2.98743545]
[1724116506989,3.75581,2662.6,2661.5,0.29874355]
[1724116507222,3.75588,2662.5,2661.6,0.55]
[1724116507446,3.75643,2662.1,2661.6,0.09883677]
[1724116507660,3.75679,2661.9,2661.6,0.09883677]
[1724116507863,3.75696,2661.8,2661.6,0.09883677]
[1724116508150,7.545112,2661.9,2660.9,0.0299763]
[1724116508360,3.75679,2661.9,2661.7,0.09479107]
[1724116508647,3.75708,2661.7,2660.9,0.5799763]
[1724116508860,3.0,2661.6,2660.9,0.5799763]
[1724116508997,3.0,2661.6,2661.0,0.09532589]
[1724116509202,7.432958,2661.6,2661.0,0.09532589]
[1724116509443,7.432958,2661.6,2660.9,0.0299763]
[1724116509444,6.75725,2661.6,2660.9,0.0299763]
[1724116509611,3.75758,2661.3,2660.9,0.0299763]
[1724116509956,3.75734,2661.5,2660.9,0.0299763]
[1724116510167,3.75756,2661.3,2660.9,0.0299763]
[1724116510315,7.51521,2661.3,2660.9,0.0299763]
[1724116510521,3.75773,2661.2,2660.9,0.0299763]
[1724116510738,3.75753,2661.4,2660.9,0.0299763]
[1724116510916,3.0,2661.3,2660.9,0.0299763]
[1724116511139,6.75757,2661.3,2660.9,0.0299763]
[1724116512222,3.0,2661.3,2660.9,0.0299763]
[1724116512610,3.037,2661.9,2660.9,2.3928763]
[1724116512611,3.0,2661.6,2660.9,2.3928763]
[1724116512924,3.0,2661.8,2661.0,0.33478977]
[1724116513103,3.75672,2661.9,2661.0,0.23928763]
[1724116513309,3.75693,2661.8,2661.1,0.09544397]
[1724116513555,3.75693,2661.8,2661.0,0.23928763]
[1724116513861,3.75693,2661.8,2661.2,0.09539462]
[1724116514008,3.75693,2661.8,2661.1,0.09544397]
[1724116514209,3.75693,2661.8,2661.0,0.23928763]
[1724116514553,3.0,2661.7,2661.1,0.09544397]
[1724116514911,3.75714,2661.6,2661.1,0.09544397]
[1724116515108,3.75709,2661.7,2661.0,0.23928763]
[1724116515410,3.75728,2661.5,2660.9,0.0299763]
[1724116515719,4.05709,2661.7,2660.9,0.0299763]
[1724116515720,3.0,2661.6,2660.9,0.0299763]
[1724116515921,6.75714,2661.6,2660.9,0.0299763]
[1724116516809,3.75739,2661.5,2660.9,0.0299763]
[1724116517042,6.75744,2661.4,2660.9,0.0299763]
[1724116517667,3.75787,2661.1,2660.9,0.0299763]
[1724116517808,3.0,2661.0,2660.9,0.0299763]
[1724116518008,3.75798,2661.0,2660.9,0.0299763]
[1724116518209,3.75787,2661.1,2660.9,0.0299763]
[1724116518409,3.75798,2661.0,2660.9,0.0299763]
[1724116518685,6.75798,2661.0,2660.9,0.0299763]
[1724116519211,3.0,2661.0,2660.9,0.0299763]
[1724116520625,3.75787,2661.1,2660.9,0.0299763]
[1724116520811,6.75798,2661.0,2660.9,0.0299763]
[1724116521454,10.51596,2661.0,2660.9,0.0299763]
[1724116521660,15.98376,2661.0,2660.9,0.0299763]
[1724116523091,19.74174,2661.0,2660.9,0.0299763]
[1724116523394,22.08338966,2661.0,2660.9,0.0299763]
[1724116523688,29.41604358,2661.0,2660.9,0.0299763]
[1724116523889,24.01452517,2661.0,2660.9,0.0299763]
[1724116524032,24.01452517,2661.0,2660.9,6.3e-06]
[1724116524234,24.01452517,2661.0,2659.1,2.4553]
[1724116524235,3.7595,2660.0,2659.1,2.4553]
[1724116524489,3.75954,2659.9,2659.1,2.4553]
[1724116524782,3.75969,2659.8,2659.2,0.09684875]
[1724116524946,3.75969,2659.8,2659.1,2.4553]
[1724116524947,7.51946,2659.8,2659.1,2.4553]
[1724116525151,7.51946,2659.8,2659.3,0.09706391]
[1724116525152,3.75989,2659.7,2659.3,0.09706391]
[1724116525340,3.75989,2659.7,2659.1,2.4553]
[1724116525530,3.75969,2659.8,2659.1,2.70083]
[1724116525734,3.0,2659.7,2659.1,2.70083]
[1724116525935,6.75956,2659.9,2659.2,0.09711333]
[1724116526418,3.0,2659.9,2659.2,0.09711333]
[1724116526616,3.0,2659.8,2659.2,0.09711333]
[1724116526903,3.75939,2660.0,2659.3,0.55]
[1724116527115,3.0,2659.9,2659.3,0.55]
[1724116527918,3.75888,2660.4,2659.3,0.55]
[1724116528061,3.75914,2660.2,2659.4,2.3303]
[1724116528258,3.0,2660.1,2659.5,0.55]
[1724116528560,3.0,2660.1,2659.4,2.3303]
[1724116528760,3.75941,2660.0,2659.4,2.3303]
[1724116528960,3.75971,2659.8,2658.6,2.3303]